bitfinex-derivatives/quotes_SOLF0:USTF0_20250415
["timestamp","ask_amount","ask_price","bid_price","bid_amount"]
[1744753538908,29.7,128.26,128.24,0.05635341]
[1744753539312,7.7971,128.25,128.24,0.05635341]
[1744753540113,37.4969,128.26,128.24,7.85395341]
[1744753540313,29.7,128.26,128.24,0.05635341]
[1744753540713,7.7971,128.25,128.24,0.05635341]
[1744753545712,16.24523688,128.25,128.24,0.05635341]
[1744753553424,0.05010256,128.27,128.26,7.7965]
[1744753553630,398.796,128.39,128.26,8.44813688]
[1744753553927,16.24003688,128.34,128.27,29.68]
[1744753554132,16.24003688,128.34,128.31,7.7933]
[1744753554633,16.24003688,128.34,128.3,7.7937]
[1744753555238,16.24003688,128.34,128.31,7.7933]
[1744753555938,16.29825151,128.34,128.31,7.84971363]
[1744753556745,0.05821463,128.34,128.32,7.7927]
[1744753556942,8.50635151,128.34,128.32,7.7927]
[1744753558644,16.29815151,128.34,128.32,7.7927]
[1744753559045,16.29815151,128.34,128.31,7.84951363]
[1744753559547,16.29815151,128.34,128.32,7.7928]
[1744753559749,16.29815151,128.34,128.31,0.05641363]
[1744753560347,16.29815151,128.34,128.31,7.84951363]
[1744753562148,7.7923,128.33,128.31,0.05641363]
[1744753563548,16.29825151,128.34,128.31,7.84961363]
[1744753564551,7.85011463,128.34,128.31,7.84961363]
[1744753564749,8.44813688,128.33,128.31,7.84961363]
[1744753566053,16.24033688,128.33,128.31,7.84961363]
[1744753567053,8.44813688,128.33,128.31,7.84961363]
[1744753568149,16.29825151,128.34,128.31,7.84961363]
[1744753568456,8.50635151,128.34,128.31,7.84961363]
[1744753568856,16.29825151,128.34,128.31,7.84961363]
[1744753569356,7.7922,128.33,128.31,7.84961363]
[1744753572056,8.50635151,128.34,128.31,0.05641363]
[1744753573157,7.7925,128.33,128.31,0.05641363]
[1744753574961,7.7928,128.32,128.31,0.05641363]
[1744753584566,7.7926,128.33,128.31,0.05641363]
[1744753585273,7.7928,128.32,128.31,0.05641363]
[1744753585571,10.60305151,128.34,128.31,0.05641363]
[1744753586072,2.15491463,128.34,128.31,0.05641363]
[1744753586373,16.24083688,128.33,128.31,0.05641363]
[1744753589777,7.7928,128.32,128.31,0.05641363]
[1744753591779,16.24093688,128.32,128.31,0.05641363]
[1744753595075,45.88093688,128.32,128.31,0.05641363]
[1744753595782,6.31871463,128.34,128.31,0.05641363]
[1744753596079,16.24073688,128.33,128.31,0.05641363]
[1744753598281,16.24073688,128.33,128.31,7.84971363]
[1744753599383,16.24073688,128.33,128.31,0.05641363]
[1744753599985,16.24073688,128.33,128.31,7.84981363]
[1744753603986,8.44813688,128.33,128.32,7.7928]
[1744753604187,8.44813688,128.33,128.31,0.05641363]
[1744753604988,8.44813688,128.33,128.31,7.84941363]
[1744753612794,2.15491463,128.34,128.31,0.05641363]
[1744753614195,2.15491463,128.34,128.33,7.7922]
[1744753617097,2.15491463,128.34,128.32,7.7925]
[1744753618394,0.05821463,128.34,128.33,7.7922]
[1744753620999,7.84981463,128.34,128.32,7.7925]
[1744753621702,0.05821463,128.34,128.32,7.7925]
[1744753622098,0.05821463,128.34,128.33,7.7922]
[1744753629009,7.84981463,128.34,128.32,7.7925]
[1744753629311,0.05821463,128.34,128.31,0.05641363]
[1744753629510,0.05821463,128.34,128.32,7.7924]
[1744753629809,0.05821463,128.34,128.31,0.05641363]
[1744753630109,0.05821463,128.34,128.33,7.7922]
[1744753631210,7.84981463,128.34,128.31,0.05641363]
[1744753631609,7.84981463,128.34,128.31,7.84951363]
[1744753631802,0.05821463,128.34,128.31,0.05641363]
[1744753634215,0.05821463,128.34,128.33,7.7922]
[1744753643714,0.05821463,128.34,128.31,0.05641363]
[1744753643914,8.44813688,128.33,128.31,0.05641363]
[1744753644319,7.7928,128.32,128.31,0.05641363]
[1744753645320,29.58,128.32,128.26,29.58]
[1744753645515,8.44813688,128.3,128.26,29.58]
[1744753645722,8.44813688,128.3,128.25,8.44813688]
[1744753645920,8.44813688,128.3,128.23,598.92813688]
[1744753646220,7.7961,128.27,128.24,7.7974]
[1744753646411,8.44813688,128.28,128.24,7.7974]
[1744753646611,8.44813688,128.28,128.27,0.05225088]
[1744753646815,7.7965,128.26,128.24,7.7974]
[1744753647724,7.7975,128.25,128.24,0.05383795]
[1744753654929,16.24563688,128.25,128.24,0.05383795]
[1744753655927,8.44813688,128.25,128.2,37.3799]
[1744753656133,8.44813688,128.23,128.2,29.58]
[1744753656326,8.44813688,128.23,128.19,8.44813688]
[1744753656527,7.7993,128.22,128.19,7.8003]
[1744753657021,7.85463322,128.22,128.19,7.84973762]
[1744753658427,7.7996,128.21,128.19,0.04943762]
[1744753658628,16.24773688,128.21,128.19,0.04943762]
[1744753659030,7.8001,128.2,128.19,0.04943762]
[1744753660629,7.8014,128.18,128.15,7.8028]
[1744753661531,7.8014,128.18,128.15,7.85649167]
[1744753661532,7.8560965,128.18,128.15,7.85649167]
[1744753662130,7.8021,128.17,128.15,0.05369167]
[1744753663329,0.0546965,128.18,128.15,0.05369167]
[1744753664234,0.0546965,128.18,128.15,7.85679167]
[1744753664632,7.8564965,128.18,128.15,7.85679167]
[1744753665333,7.8025,128.16,128.15,0.05369167]
[1744753665832,8.44813688,128.15,128.1,38.02813688]
[1744753666329,8.44813688,128.15,128.1,8.44813688]
[1744753666535,7.8044,128.13,128.1,16.25403688]
[1744753666735,8.50698712,128.13,128.1,0.05311057]
[1744753667432,16.31168712,128.13,128.1,7.85921057]
[1744753668335,16.31168712,128.13,128.1,0.05311057]
[1744753669038,16.31168712,128.13,128.1,7.85921057]
[1744753669226,7.86355024,128.13,128.1,7.85921057]
[1744753669535,16.31168712,128.13,128.1,7.85921057]
[1744753671234,8.50698712,128.13,128.1,0.05311057]
[1744753671533,0.05885024,128.13,128.1,0.05311057]
[1744753673132,0.05885024,128.13,128.12,7.805]
[1744753676933,0.05885024,128.13,128.11,7.8052]
[1744753677137,0.05885024,128.13,128.1,0.05311057]
[1744753677536,0.05885024,128.13,128.11,7.8056]
[1744753678033,0.05885024,128.13,128.1,0.05311057]
[1744753678334,0.05885024,128.13,128.12,7.805]
[1744753679135,0.05885024,128.13,128.11,7.8052]
[1744753679333,0.05885024,128.13,128.1,0.05311057]
[1744753679838,0.05885024,128.13,128.11,7.8053]
[1744753681540,0.05885024,128.13,128.12,7.805]
[1744753685739,7.8023,128.17,128.1,38.10124745]
[1744753686042,8.44813688,128.18,128.16,7.8025]
[1744753686844,8.50466664,128.18,128.16,7.85992128]
[1744753687241,16.30606664,128.18,128.16,7.85992128]
[1744753687540,8.50466664,128.18,128.16,7.85992128]
[1744753688841,8.50466664,128.18,128.17,7.8019]
[1744753689143,0.05652976,128.18,128.17,7.8019]
[1744753700554,926.48,128.31,128.22,7.7984]
[1744753700856,8.44813688,128.26,128.22,29.56]
[1744753701063,8.44813688,128.26,128.25,7.7971]
[1744753702265,0.05764421,128.27,128.25,7.7971]
[1744753702461,0.05764421,128.27,128.26,7.7965]
[1744753702760,0.05764421,128.27,128.24,0.05848734]
[1744753703351,0.05764421,128.27,128.26,7.7965]
[1744753706760,8.44813688,128.3,128.25,38.00813688]
[1744753707766,0.05518637,128.29,128.25,38.00813688]
[1744753708365,0.05518637,128.29,128.28,7.7948]
[1744753731676,0.05518637,128.29,128.27,7.85339239]
[1744753731876,0.05518637,128.29,128.27,0.05759239]
[1744753732576,8.44813688,128.28,128.27,0.05759239]
[1744753732778,8.44813688,128.28,128.22,29.5]
[1744753732976,8.44813688,128.26,128.22,29.5]
[1744753733176,7.7972,128.25,128.22,37.2987]
[1744753733578,8.44813688,128.24,128.22,29.5]
[1744753733777,8.44813688,128.24,128.19,37.3004]
[1744753733978,8.44813688,128.22,128.21,0.05430611]
[1744753734383,37.94813688,128.22,128.16,29.5]
[1744753734583,8.44813688,128.19,128.15,8.44813688]
[1744753734883,16.24913688,128.19,128.13,40.08373688]
[1744753735281,0.0562363,128.17,128.16,7.8025]
[1744753747590,0.0562363,128.17,128.15,7.86104254]
[1744753751192,0.0562363,128.17,128.15,0.05804254]
[1744753755508,7.8581363,128.17,128.15,0.05804254]
[1744753760310,7.8025,128.16,128.15,0.05804254]
[1744753761711,7.8585363,128.17,128.15,0.05804254]
[1744753762112,7.8025,128.16,128.15,0.05804254]
[1744753769018,7.8584363,128.17,128.15,0.05804254]
[1744753770713,7.8584363,128.17,128.15,7.86114254]
[1744753777524,7.8584363,128.17,128.15,0.05804254]
[1744753778526,7.8584363,128.17,128.15,7.86094254]
[1744753783024,0.0562363,128.17,128.16,7.8025]
[1744753787429,29.54,128.19,128.17,7.8014]
[1744753787827,29.54,128.19,128.15,0.05804254]
[1744753788430,0.05042887,128.18,128.15,0.05804254]
[1744753788732,0.05042887,128.18,128.17,7.8015]
[1744753796642,3.41803623,128.18,128.17,7.8015]
[1744753796839,3.4180313,128.18,128.17,7.8015]
[1744753797042,0.05042887,128.18,128.17,7.8015]
[1744753797243,16.29986575,128.18,128.16,7.8022]
[1744753801347,16.29986575,128.18,128.15,7.86084254]
[1744753802446,16.29986575,128.18,128.16,7.8022]
[1744753806852,7.85172887,128.18,128.16,7.8022]
[1744753814264,0.05042887,128.18,128.16,7.8022]
[1744753821076,0.05042887,128.18,128.17,7.8019]
[1744753828573,11.22279546,128.18,128.16,7.8023]
[1744753828775,7.85172887,128.18,128.16,7.8023]
[1744753831973,0.05042887,128.18,128.16,7.8025]
[1744753833173,7.85172887,128.18,128.16,7.8025]
[1744753834766,0.05042887,128.18,128.17,7.8019]
[1744753834972,3.42187507,128.18,128.17,7.8019]
[1744753835377,0.05042887,128.18,128.17,7.8019]
[1744753837277,3.42199337,128.18,128.17,7.8019]
[1744753837674,0.05042887,128.18,128.17,7.8019]
[1744753837870,3.42202995,128.18,128.17,7.8019]
[1744753838280,0.05042887,128.18,128.17,7.8019]
[1744753839279,3.42238164,128.18,128.17,7.8019]
[1744753843080,0.05042887,128.18,128.17,7.8019]
[1744753843281,3.42311243,128.18,128.17,7.8019]
[1744753847186,0.05042887,128.18,128.17,7.8019]
[1744753860090,0.05042887,128.18,128.16,7.8023]
[1744753861289,0.05042887,128.18,128.17,7.8019]
[1744753861690,7.85192887,128.18,128.15,0.05804254]
[1744753863195,0.05042887,128.18,128.15,0.05804254]
[1744753863797,0.05042887,128.18,128.17,7.8019]
[1744753865499,7.85222887,128.18,128.16,7.8022]
[1744753866397,16.30036575,128.18,128.16,7.8022]
[1744753866898,8.49856575,128.18,128.17,7.8019]
[1744753870401,11.87093712,128.18,128.17,7.8019]
[1744753871096,3.42280024,128.18,128.17,7.8019]
[1744753872498,0.05042887,128.18,128.17,7.8019]
[1744753883805,11.86926325,128.18,128.15,0.05804254]
[1744753884007,8.49856575,128.18,128.15,0.05804254]
[1744753884606,7.8019,128.17,128.15,7.86084254]
[1744753885008,8.49856575,128.18,128.15,0.05804254]
[1744753885507,8.49856575,128.18,128.16,7.8025]
[1744753888208,8.49856575,128.18,128.15,7.86074254]
[1744753888409,8.44813688,128.16,128.15,0.05804254]
[1744753888607,17.55548589,128.16,128.15,0.05804254]
[1744753888807,25.35798589,128.16,128.15,0.05804254]
[1744753889514,25.3548379,128.16,128.15,0.05804254]
[1744753889814,19.62107132,128.16,128.15,0.05804254]
[1744753891214,16.25063688,128.16,128.15,0.05804254]
[1744753898722,19.61417416,128.16,128.15,0.05804254]
[1744753899718,16.25063688,128.16,128.15,0.05804254]
[1744753907127,8.44813688,128.16,128.15,0.05804254]
[1744753907832,16.25063688,128.16,128.15,0.05804254]
[1744753908934,8.44813688,128.16,128.15,0.05804254]
[1744753912937,8.44813688,128.16,128.15,7.86114254]
[1744753913238,19.61145879,128.16,128.15,0.05804254]
[1744753913426,16.25063688,128.16,128.15,0.05804254]
[1744753919738,19.61141211,128.16,128.15,0.05804254]
[1744753919934,16.25063688,128.16,128.15,0.05804254]
[1744753920134,19.61142892,128.16,128.15,0.05804254]
[1744753920941,7.8045,128.13,128.1,29.4]
[1744753921439,7.8045,128.13,128.11,7.8053]
[1744753921842,7.85590333,128.13,128.11,7.85844011]
[1744753926249,8.44813688,128.12,128.11,0.05314011]
[1744753926641,16.25313688,128.12,128.11,0.05314011]
[1744753948367,7.8068,128.09,128.05,2.0254]
[1744753948563,16.25493688,128.09,128.05,2.0254]
[1744753948866,16.25493688,128.09,128.06,7.8081]
[1744753949265,16.30691855,128.09,128.06,7.86047259]
[1744753949466,16.30691855,128.09,128.07,7.8079]
[1744753951766,16.30691855,128.09,128.06,7.86067259]
[1744753952162,16.30691855,128.09,128.06,0.05237259]
[1744753952363,16.30691855,128.09,128.07,7.808]
[1744753953570,7.8074,128.08,128.06,7.86067259]
[1744753953765,8.50011855,128.09,128.06,0.05237259]
[1744753954767,16.30721855,128.09,128.07,7.808]
[1744753956176,16.30721855,128.09,128.06,7.86077259]
[1744753962172,7.8076,128.08,128.06,7.86077259]
[1744753963569,7.8076,128.08,128.06,0.05237259]
[1744753976191,7.8076,128.08,128.06,7.86097259]
[1744753977189,16.30721855,128.09,128.06,7.86097259]
[1744753978292,7.8075,128.08,128.06,7.86097259]
[1744753981198,8.44813688,128.07,128.06,0.05237259]
[1744753983498,16.25613688,128.07,128.06,0.05237259]
[1744753987101,19.62549396,128.07,128.06,0.05237259]
[1744753987302,16.25613688,128.07,128.06,0.05237259]
[1744753989202,19.62562756,128.07,128.06,0.05237259]
[1744753989802,16.25613688,128.07,128.06,0.05237259]
[1744753990704,19.62548273,128.07,128.06,0.05237259]
[1744753995512,16.25613688,128.07,128.06,0.05237259]
[1744753996014,19.62511322,128.07,128.06,0.05237259]
[1744753996507,19.62500473,128.07,128.06,0.05237259]
[1744754000211,16.25613688,128.07,128.06,0.05237259]
[1744754001115,19.62452942,128.07,128.06,0.05237259]
[1744754002418,7.81,128.04,128.02,7.8107]
[1744754002612,16.25813688,128.04,128.02,7.8107]
[1744754003314,16.31783754,128.04,128.02,7.86156596]
[1744754003914,16.25863688,128.03,128.02,0.05086596]
[1744754004120,8.44813688,128.03,127.98,1.41854985]
[1744754004413,7.812,128.01,127.98,7.8131]
[1744754004618,16.26013688,128.01,127.98,7.8131]
[1744754004818,8.44813688,128.0,127.98,7.8131]
[1744754005018,8.49942921,128.0,127.98,7.87223327]
[1744754005220,8.44813688,127.99,127.98,0.05913327]
[1744754009121,8.44813688,127.99,127.98,7.87263327]
[1744754009420,8.49942921,128.0,127.98,0.05913327]
[1744754010521,8.49942921,128.0,127.98,7.87243327]
[1744754010922,8.44813688,127.99,127.98,7.87243327]
[1744754012622,8.44813688,127.99,127.98,0.05913327]
[1744754014223,16.26103688,127.99,127.96,7.8145]
[1744754014424,8.44813688,127.97,127.96,7.8145]
[1744754015223,2.06799233,128.0,127.96,7.8145]
[1744754015423,8.44813688,127.98,127.96,7.8145]
[1744754015720,8.44813688,127.98,127.97,7.8141]
[1744754016023,8.44813688,127.99,127.97,7.8141]
[1744754016222,8.44813688,127.99,127.98,7.8135]
[1744754018323,8.44813688,127.99,127.95,0.04922336]
[1744754018324,0.05129233,128.0,127.99,7.8129]
[1744754018524,8.44813688,128.02,127.98,0.0541583]
[1744754018727,8.44813688,128.03,127.98,8.44813688]
[1744754018922,2.1661,128.05,127.98,8.44813688]
[1744754018923,8.44813688,128.04,128.03,7.8105]
[1744754019128,8.44813688,128.05,128.0,37.78813688]
[1744754019326,8.44813688,128.06,128.01,8.44813688]
[1744754019525,0.05154117,128.05,128.01,8.44813688]
[1744754019727,0.05154117,128.05,128.02,0.05919397]
[1744754020130,0.05154117,128.05,128.04,7.8099]
[1744754020828,0.05154117,128.05,128.03,7.8101]
[1744754021330,0.05154117,128.05,128.02,0.05919397]
[1744754022134,0.05154117,128.05,128.03,7.8105]
[1744754026231,7.86084117,128.05,128.03,7.8105]
[1744754027033,0.05154117,128.05,128.03,7.8105]
[1744754027334,0.05154117,128.05,128.04,7.8099]
[1744754029933,8.44813688,128.1,128.04,37.76813688]
[1744754030538,8.44813688,128.1,128.08,7.8073]
[1744754030939,8.5012759,128.1,128.08,7.86636104]
[1744754032242,16.3074759,128.1,128.08,7.86636104]
[1744754034737,0.05313902,128.1,128.09,7.8068]
[1744754034938,8.5012759,128.1,128.09,7.8068]
[1744754037146,8.5012759,128.1,128.08,7.86616104]
[1744754037446,8.5012759,128.1,128.08,0.05906104]
[1744754037743,8.5012759,128.1,128.08,7.86616104]
[1744754037943,8.5012759,128.1,128.08,0.05906104]
[1744754038537,8.5012759,128.1,128.08,7.86626104]
[1744754039943,8.5012759,128.1,128.08,0.05906104]
[1744754040544,8.5012759,128.1,128.08,7.86636104]
[1744754041239,8.5012759,128.1,128.08,0.05906104]
[1744754041442,16.3075759,128.1,128.08,0.05906104]
[1744754041943,8.5012759,128.1,128.08,7.86646104]
[1744754042145,16.3077759,128.1,128.08,0.05906104]
[1744754042648,7.8068,128.09,128.08,0.05906104]
[1744754042844,8.5012759,128.1,128.08,0.05906104]
[1744754043247,7.8068,128.09,128.08,0.05906104]
[1744754043444,8.5012759,128.1,128.04,29.32]
[1744754043644,8.44813688,128.06,128.04,29.32]
[1744754044446,8.50244566,128.06,128.04,29.37091795]
[1744754044654,16.31144566,128.06,128.04,29.37091795]
[1744754044947,8.50244566,128.06,128.04,0.05091795]
[1744754045348,7.8092,128.05,128.04,0.05091795]
[1744754050052,7.8113,128.02,127.98,37.74813688]
[1744754050252,16.25943688,128.02,127.98,37.74813688]
[1744754050954,0.05101641,128.01,127.99,7.86602863]
[1744754056762,7.86271641,128.01,127.99,7.86602863]
[1744754057962,7.8123,128.0,127.99,0.05362863]
[1744754058367,8.49915329,128.01,127.99,0.05362863]
[1744754058568,16.31145329,128.01,127.99,0.05362863]
[1744754059767,7.8123,128.0,127.99,0.05362863]
[1744754062872,8.49915329,128.01,127.99,0.05362863]
[1744754063358,7.8123,128.0,127.99,0.05362863]
[1744754064372,7.8142,127.97,127.95,45.54313688]
[1744754064670,7.8142,127.97,127.95,37.095]
[1744754065270,7.8139,127.98,127.95,37.095]
[1744754065570,7.86837522,127.98,127.95,37.15483256]
[1744754066767,7.8143,127.97,127.95,0.05983256]
[1744754069471,7.8143,127.97,127.95,7.87513256]
[1744754070071,7.8143,127.97,127.95,0.05983256]
[1744754071771,16.26243688,127.97,127.95,0.05983256]
[1744754072273,16.26243688,127.97,127.95,7.87513256]
[1744754075678,8.5026121,127.98,127.95,0.05983256]
[1744754076577,7.8145,127.97,127.95,0.05983256]
[1744754078076,8.44813688,127.97,127.95,0.05983256]
[1744754078876,16.26253688,127.97,127.95,0.05983256]
[1744754081181,8.44813688,127.96,127.95,0.05983256]
[1744754092784,16.26283688,127.96,127.95,0.05983256]
[1744754092988,8.44813688,127.96,127.95,0.05983256]
[1744754097793,16.26283688,127.96,127.93,7.8161]
[1744754098090,8.44813688,127.95,127.93,7.8161]
[1744754098691,8.5044962,127.95,127.93,7.86896898]
[1744754099192,8.5044962,127.95,127.93,0.05286898]
[1744754099389,8.44813688,127.94,127.93,0.05286898]
[1744754099792,16.26413688,127.94,127.93,0.05286898]
[1744754100795,7.8167,127.93,127.9,7.8179]
[1744754101692,7.8167,127.93,127.9,7.86710294]
[1744754101892,16.26483688,127.93,127.9,7.86710294]
[1744754102298,16.26483688,127.93,127.9,0.04920294]
[1744754102299,7.8173,127.92,127.9,0.04920294]
[1744754102597,7.87478421,127.92,127.9,0.04920294]
[1744754103397,0.05748421,127.92,127.9,7.86750294]
[1744754103795,0.05748421,127.92,127.9,0.04920294]
[1744754104095,7.87498421,127.92,127.9,0.04920294]
[1744754105398,7.87498421,127.92,127.9,7.86750294]
[1744754105792,0.05748421,127.92,127.9,0.04920294]
[1744754105999,0.05748421,127.92,127.91,7.8178]
[1744754113213,0.05748421,127.92,127.9,0.04920294]
[1744754113511,8.44813688,127.91,127.9,0.04920294]
[1744754114012,16.26593688,127.91,127.9,0.04920294]
[1744754116217,16.32312109,127.92,127.9,0.04920294]
[1744754116715,16.32312109,127.92,127.9,7.86720294]
[1744754116716,8.50562109,127.92,127.9,7.86720294]
[1744754117114,0.05748421,127.92,127.9,0.04920294]
[1744754117318,0.05748421,127.92,127.9,7.86720294]
[1744754122220,8.44813688,127.91,127.9,0.04920294]
[1744754122921,16.26593688,127.91,127.9,0.04920294]
[1744754123122,7.8178,127.91,127.9,0.04920294]
[1744754123322,16.26593688,127.91,127.9,0.04920294]
[1744754123918,7.8178,127.91,127.9,0.04920294]
[1744754124123,16.26593688,127.91,127.9,0.04920294]
[1744754124724,7.8178,127.91,127.9,0.04920294]
[1744754125023,16.26593688,127.91,127.9,0.04920294]
[1744754125319,7.8178,127.91,127.9,0.04920294]
[1744754125525,16.26593688,127.91,127.9,0.04920294]
[1744754125827,7.8178,127.91,127.9,0.04920294]
[1744754126024,16.26593688,127.91,127.9,0.04920294]
[1744754126327,7.8178,127.91,127.9,0.04920294]
[1744754126525,8.44813688,127.91,127.9,0.04920294]
[1744754126929,0.05748421,127.92,127.9,0.04920294]
[1744754127124,8.50562109,127.92,127.9,0.04920294]
[1744754127524,0.05748421,127.92,127.9,0.04920294]
[1744754127723,8.50562109,127.92,127.9,0.04920294]
[1744754128028,0.05748421,127.92,127.9,0.04920294]
[1744754128531,0.05748421,127.92,127.9,29.30920294]
[1744754128726,8.44813688,127.96,127.91,8.44813688]
[1744754129118,6.332,127.99,127.91,8.44813688]
[1744754129328,8.44813688,127.97,127.94,7.8159]
[1744754129723,0.05965899,127.97,127.94,0.05575158]
[1744754129926,8.44813688,127.96,127.94,0.05575158]
[1744754130230,0.05965899,127.97,127.94,0.05575158]
[1744754130423,8.50779587,127.97,127.94,0.05575158]
[1744754130923,0.05965899,127.97,127.94,0.05575158]
[1744754131320,8.50779587,127.97,127.95,7.8153]
[1744754133038,8.50779587,127.97,127.94,7.87155158]
[1744754133330,0.05965899,127.97,127.94,7.87155158]
[1744754133632,8.50779587,127.97,127.94,7.87155158]
[1744754133832,8.50779587,127.97,127.95,7.8153]
[1744754134028,0.05965899,127.97,127.95,7.8153]
[1744754134227,8.50779587,127.97,127.95,7.8153]
[1744754134725,0.05965899,127.97,127.95,7.8153]
[1744754134924,8.50779587,127.97,127.95,7.8153]
[1744754135431,0.05965899,127.97,127.95,7.8153]
[1744754135632,0.05965899,127.97,127.94,0.05575158]
[1744754135633,0.05965899,127.97,127.96,7.8147]
[1744754136334,29.24,128.03,127.95,8.44813688]
[1744754136529,8.44813688,128.0,127.95,8.44813688]
[1744754136729,8.44813688,128.0,127.96,29.24]
[1744754136934,8.44813688,128.0,127.98,7.813]
[1744754137138,8.44813688,128.0,127.96,29.24]
[1744754137330,0.05755965,127.99,127.98,7.8135]
[1744754141139,8.44813688,128.02,128.0,7.8121]
[1744754142136,8.44813688,128.02,128.0,7.86243944]
[1744754142341,8.50005539,128.02,128.0,7.86243944]
[1744754145845,0.05191851,128.02,128.0,7.86243944]
[1744754146247,8.50005539,128.02,128.0,7.86243944]
[1744754146744,8.50005539,128.02,128.01,7.8117]
[1744754147341,8.50005539,128.02,128.0,7.86253944]
[1744754147546,8.50005539,128.02,128.0,0.05033944]
[1744754149746,8.50005539,128.02,128.0,7.86253944]
[1744754150048,16.31115539,128.02,128.0,7.86253944]
[1744754150842,16.25923688,128.02,128.0,7.86253944]
[1744754151044,8.44813688,128.16,128.04,15.6196]
[1744754151341,8.44813688,128.1,128.05,29.24]
[1744754151545,8.44813688,128.1,128.07,7.8077]
[1744754151744,8.44813688,128.1,128.08,29.24]
[1744754151947,8.50546319,128.1,128.08,0.05393264]
[1744754152242,8.50546319,128.1,128.08,29.29393264]
[1744754153050,8.50546319,128.1,128.08,37.10133264]
[1744754153647,8.50546319,128.1,128.08,7.86133264]
[1744754154545,8.50546319,128.1,128.08,37.10133264]
[1744754154750,8.50546319,128.1,128.08,29.29393264]
[1744754155347,16.31176319,128.1,128.08,29.29393264]
[1744754156047,7.8068,128.09,128.08,29.29393264]
[1744754156250,8.50546319,128.1,128.08,29.29393264]
[1744754156751,16.31196319,128.1,128.08,29.29393264]
[1744754158053,7.8068,128.09,128.08,29.29393264]
[1744754159347,7.8068,128.09,128.08,0.05393264]
[1744754160753,8.50546319,128.1,128.08,0.05393264]
[1744754161354,7.8068,128.09,128.08,0.05393264]
[1744754161648,8.50546319,128.1,128.08,0.05393264]
[1744754162455,7.8068,128.09,128.08,0.05393264]
[1744754172763,7.86382631,128.1,128.08,0.05393264]
[1744754173662,7.8068,128.09,128.08,0.05393264]
[1744754175165,7.86402631,128.1,128.08,0.05393264]
[1744754175463,0.05732631,128.1,128.08,0.05393264]
[1744754176867,7.8068,128.09,128.08,0.05393264]
[1744754182970,0.05732631,128.1,128.08,0.05393264]
[1744754183869,0.05732631,128.1,128.09,7.8068]
[1744754199082,16.25213688,128.14,128.11,7.8052]
[1744754199277,16.25213688,128.14,128.11,37.1252]
[1744754200083,7.8044,128.13,128.11,37.1840074]
[1744754204186,16.30743026,128.14,128.11,37.1840074]
[1744754205186,16.30743026,128.14,128.12,7.8049]
[1744754206187,0.05519338,128.14,128.13,7.8044]
[1744754212291,0.05519338,128.14,128.12,7.8048]
[1744754213292,0.05519338,128.14,128.13,7.8044]
[1744754234311,2.0418,128.18,128.13,29.22]
[1744754234501,2.0233,128.22,128.16,8.44813688]
[1744754234706,12.63303688,128.24,128.18,8.44813688]
[1744754234906,12.63303688,128.24,128.2,7.7996]
[1744754235105,4.1849,128.24,128.21,29.22]
[1744754235507,4.24104309,128.24,128.22,7.7984]
[1744754236110,4.24104309,128.24,128.23,7.7983]
[1744754236306,0.05614309,128.24,128.23,7.7983]
[1744754237208,8.44813688,128.29,128.26,7.7961]
[1744754237407,8.44813688,128.29,128.26,29.2]
[1744754237913,8.44813688,128.29,128.27,7.7954]
[1744754238210,4.0425,128.3,128.27,7.7954]
[1744754238405,0.05930348,128.29,128.28,7.7952]
[1744754243012,0.05930348,128.29,128.28,16.24333688]
[1744754243613,7.7926,128.33,128.3,7.794]
[1744754243812,7.7926,128.33,128.31,29.2]
[1744754244313,7.7929,128.32,128.31,29.2]
[1744754248315,7.7929,128.32,128.3,29.23315635]
[1744754250122,8.50246445,128.33,128.3,37.02705635]
[1744754250314,0.05432757,128.33,128.3,37.02705635]
[1744754250919,7.84672757,128.33,128.3,37.02705635]
[1744754254126,7.84672757,128.33,128.3,29.23315635]
[1744754254720,7.84672757,128.33,128.3,37.02675635]
[1744754256121,7.84672757,128.33,128.31,7.7934]
[1744754257236,7.84672757,128.33,128.3,37.02685635]
[1744754257532,7.84672757,128.33,128.3,29.23315635]
[1744754260334,7.84672757,128.33,128.31,7.7932]
[1744754276547,0.05432757,128.33,128.31,7.7934]
[1744754277851,7.84652757,128.33,128.31,7.7934]
[1744754278454,0.05432757,128.33,128.31,7.7934]
[1744754280656,0.05432757,128.33,128.32,7.7928]
[1744754280953,0.05432757,128.33,128.32,16.24093688]
[1744754282856,0.05432757,128.33,128.32,45.40093688]
[1744754285855,0.05432757,128.33,128.32,36.9528]
[1744754288758,0.05432757,128.33,128.32,29.16]
[1744754289853,0.05432757,128.33,128.3,8.50129323]
[1744754289854,8.50246445,128.33,128.3,0.05315635]
[1744754290054,8.44813688,128.31,128.27,29.16]
[1744754290352,8.44813688,128.29,128.26,29.16]